Cogmind - Beta 11 @@@ ROGUE MODE // 2022.04.23 @ 15:42:31 Player: Finestep Result: Destroyed by exploding Fusion Modulator Performance ------------- Evolutions (3) 1500 Regions Visited (11) 2200 Robots Destroyed (187) 935 Value Destroyed (5484) 5484 Prototype IDs (17) 340 Alien Tech Used (0) 0 Bonus (1839) 1839 TOTAL SCORE: 12298 Bonus ------- High Alert Combat Kills 508 Follower Combat Kills 92 Entered Garrisons 400 Used RIF Installer 1000 Friendly Fire -161 Cogmind --------- Core Integrity 0/700 Matter 212/300 Energy 100/100 System Corruption 0% Temperature Cool (27) Movement Flying (30) Location -7/Factory Parts ------- > --- POWER (1) -------- (None) > --- PROPULSION (4) --- Cesium-ion Thruster Improved VTOL Module Xenon Bombardment Thruster > --- UTILITY (6) ------ Transport Network Coupler Hacking Suite Hacking Suite Relay Coupler [NC] (26) Relay Coupler [NC] (29) > --- WEAPON (2) ------- (None) > --- INVENTORY (5) ---- Hardened Light Armor Plating Relay Coupler [Brawler] (19) Relay Coupler [Hunter] (10) Advanced EMP Blaster Datajack Peak State ------------ > --- POWER ------------ Light Angular Momentum Engine > --- PROPULSION ------- Improved VTOL Module Improved VTOL Module Improved VTOL Module Xenon Bombardment Thruster > --- UTILITY ---------- Medium Storage Unit Improved Terrain Scanner Terrain Scan Processor Transport Network Coupler Improved Targeting Computer Hacking Suite > --- WEAPON ----------- Datajack Chainsword > --- INVENTORY -------- Makeshift Power Source Improved VTOL Module Hacking Suite Relay Coupler [NC] Relay Coupler [NC] Relay Coupler [Brawler] Relay Coupler [Hunter] Advanced EMP Blaster Great Maul [Rating: 40] Favorites ----------- Power Cooled Ion Engine Engine Cooled Ion Engine Propulsion Aluminum Leg Treads Light Treads Leg Aluminum Leg Wheel Armored Wheel Flight Unit Improved VTOL Module Utility Medium Storage Unit Device Heat Sink Storage Medium Storage Unit Processor Improved Targeting Computer Hackware Hacking Suite Protection Reflective Plating Weapon Advanced Beam Cannon Energy Gun Heavy EM Shotgun Energy Cannon Advanced Beam Cannon Ballistic Gun Heavy Assault Rifle Launcher Advanced EMP Blaster Special Weapon Mining Laser Impact Weapon Heavy Mace Slashing Weapon Chainsword Special Melee Weapon Datajack Build | -11 -10 -9 -9 -9 -8 -8 -8 -8 -8 -8 -7 ------- Run | Scr Mat Mat Min Exi Min Mat Gar Mat Sto Gar Fac Slots Evolved 6 | . . 2 . . . 2 . . . . 2 Power . | . . . . . . . . . . . . Propulsion 2 | . . 1 . . . 1 . . . . . Utility 4 | . . 1 . . . 1 . . . . 2 Weapon . | . . . . . . . . . . . . Parts Attached 145 | 7 8 19 3 . 8 13 15 15 24 11 22 Power 7 | 1 . 2 . . . . 1 1 1 . 1 Engine 7 | 1 . 2 . . . . 1 1 1 . 1 Core . | . . . . . . . . . . . . Reactor . | . . . . . . . . . . . . Propulsion 44 | 2 . 10 1 . 4 4 5 2 3 4 9 Treads 3 | 2 . . . . . . . . . 1 . Leg 28 | . . 9 1 . 4 4 5 2 3 . . Wheel 3 | . . . . . . . . . . 3 . Hover . | . . . . . . . . . . . . Flight 10 | . . 1 . . . . . . . . 9 Utility 36 | 2 1 4 2 . . 6 4 5 2 3 7 Device 12 | 1 . 2 . . . 4 1 . . 2 2 Storage 4 | 1 1 . . . . 1 . 1 . . . Processor 5 | . . . . . . . 1 3 . . 1 Hackware 5 | . . . . . . . 1 . . . 4 Protection 10 | . . 2 2 . . 1 1 1 2 1 . Artifact . | . . . . . . . . . . . . Weapon 58 | 2 7 3 . . 4 3 5 7 18 4 5 Energy Gun 17 | 1 2 . . . . 2 2 3 7 . . Energy Cannon 13 | . . 2 . . 2 1 . 2 4 2 . Ballistic Gun 5 | 1 3 1 . . . . . . . . . Ballistic Cannon . | . . . . . . . . . . . . Launcher 8 | . . . . . 2 . 2 1 1 2 . Special Weapon 1 | . 1 . . . . . . . . . . Impact Weapon 8 | . . . . . . . 1 1 6 . . Slashing Weapon 3 | . . . . . . . . . . . 3 Piercing Weapon . | . . . . . . . . . . . . Special Melee Weapon 3 | . 1 . . . . . . . . . 2 Unidentified Prototypes 7 | . . 3 . . . 1 . 2 1 . . Corrupted Parts 1 | . 1 . . . . . . . . . . System Corruption 1 | . 1 . . . . . . . . . . Parts Lost 19 | . . 1 . . . 1 6 . . 4 7 Power 2 | . . . . . . . 1 . . . 1 Propulsion 9 | . . . . . . 1 2 . . 3 3 Utility 6 | . . 1 . . . . 2 . . 1 2 Weapon 2 | . . . . . . . 1 . . . 1 Highest Loss Streak 5 | . . 1 . . . 1 5 . . 3 3 To Critical Strikes . | . . . . . . . . . . . . Average Slot Usage (%) 96 | . 100 98 100 100 100 94 94 99 100 87 75 Engine 10 | . 14 11 11 11 11 9 8 9 9 9 5 Treads 3 | . 28 2 . . . . . . . 2 . Leg 26 | . . 29 33 33 33 31 33 36 36 9 . Wheel 1 | . . . . . . . . . . 16 . Device 8 | . 14 15 11 11 11 17 14 1 . . 2 Storage 9 | . 14 11 11 11 11 9 9 9 9 9 2 Processor 6 | . . . . . . . . 15 18 18 15 Hackware 1 | . . . . . . . 1 4 . . 21 Protection 6 | . . 6 11 11 11 9 8 4 9 3 . Energy Gun 5 | . 11 . . . . 8 14 7 12 . . Energy Cannon 11 | . . 17 22 22 21 9 . 8 3 17 . Ballistic Gun 2 | . 15 4 . . . . . . . . . Naked Turns . | . . . . . . . . . . . . Heaviest Build 37 | 15 22 31 31 31 31 35 33 34 35 37 21 Greatest Support 62 | 40 40 40 33 33 45 62 57 47 57 57 21 Greatest Overweight (x) 2 | . . 1 . . . . . . . 2 1 Average Overweight (x) . | . . . . . . . . . . . . Largest Inventory Capacity 10 | 8 10 10 10 10 10 10 10 10 10 10 10 Average Capacity 9 | 7 9 10 10 10 10 10 10 10 10 10 6 Most Carried 10 | 7 10 10 10 10 10 10 10 10 10 10 10 Average Carried 9 | 3 9 9 9 10 10 9 9 9 9 9 5 Final Capacity 10 | 8 10 10 10 10 10 10 10 10 10 10 5 Final Carried 10 | 7 10 10 10 10 10 10 10 10 10 10 5 Class Distribution -------------------- 56% | Scavenger-Mutant 38% | Mutant Dominant Class ---------------- Mutant | -10/Materials Mutant | -9/Materials Mutant | -9/Mines Mutant | -9/Exiles Scavenger-Mutant | -8/Mines Scavenger-Mutant | -8/Materials Scavenger-Mutant | -8/Garrison Scavenger-Mutant | -8/Materials Scavenger-Mutant | -8/Storage Scavenger-Mutant | -8/Garrison Bothacker-Mutant | -7/Factory Resources | -11 -10 -9 -9 -9 -8 -8 -8 -8 -8 -8 -7 ----------- Run | Scr Mat Mat Min Exi Min Mat Gar Mat Sto Gar Fac Matter Collected 1896 | 263 147 360 30 . 110 130 185 160 260 144 107 Remotely . | . . . . . . . . . . . . Salvage Created 8095 | 77 437 1790 332 . 268 1079 614 842 1735 807 114 Parts 417 | 14 26 103 14 . 19 69 17 36 74 40 5 Haulers Intercepted 20 | . 1 5 . . . 4 . 5 5 . . Recyclers Shooed 10 | 1 . 1 . . 3 2 . . 3 . . Parts Field Recycled . | . . . . . . . . . . . . Retrieved Matter . | . . . . . . . . . . . . Parts Self-Destructed . | . . . . . . . . . . . . Prevented . | . . . . . . . . . . . . Kills | -11 -10 -9 -9 -9 -8 -8 -8 -8 -8 -8 -7 ------- Run | Scr Mat Mat Min Exi Min Mat Gar Mat Sto Gar Fac Combat Hostiles Destroyed 124 | . 9 26 1 . 9 20 14 6 22 16 1 Melee 2 | . . . . . . . . . 2 . . Guns 50 | . 9 8 . . . 10 11 2 10 . . Cannons 45 | . . 17 1 . 5 10 . 2 3 7 . AOE 21 | . . . . . 4 . 3 1 4 8 1 Classes Destroyed 14 | 1 5 4 . . 1 . 1 . . 2 . Worker 8 | . . 2 . . . 4 . 2 . . . Builder 3 | . . 1 . . . 2 . . . . . Tunneler 4 | 3 . 1 . . . . . . . . . Hauler 20 | . 1 5 . . . 4 . 5 5 . . Recycler 13 | . . 3 3 . 1 1 . 2 2 . 1 Operator 3 | . 1 2 . . . . . . . . . Watcher 11 | . 1 3 . . . 3 . 1 2 . 1 Swarmer 31 | . 3 3 1 . 6 11 . . . 7 . Cutter 4 | . . . . . . . . . . 3 1 Grunt 56 | . 6 16 . . 2 7 9 4 10 2 . Brawler 1 | . . . . . . . . . . 1 . Duelist 2 | . . . . . . . 1 . . 1 . Sentry 26 | . . 7 . . . 2 3 1 11 2 . Hunter 4 | . . . . . 1 . 1 1 1 . . Thug 1 | . . . 1 . . . . . . . . Best Kill Streak 10 | 3 3 6 4 . 3 10 5 3 4 5 1 Combat Bots Only 5 | . 3 5 1 . 3 5 5 2 3 5 1 Max Kills in Single Turn 2 | 1 1 2 1 . 2 1 1 1 2 2 1 Gunslinging . | . . . . . . . . . . . . Exploded 2 | . . . . . 2 . 1 1 2 2 1 Melee 1 | . . . . . . . . . 1 . . Uniques/NPCs Destroyed . | . . . . . . . . . . . . Combat | -11 -10 -9 -9 -9 -8 -8 -8 -8 -8 -8 -7 -------- Run | Scr Mat Mat Min Exi Min Mat Gar Mat Sto Gar Fac Damage Taken 5684 | . 332 654 46 . 194 715 761 243 994 676 1069 Core 1253 | . 50 47 . . 20 67 82 63 106 103 715 Absorbed by Shields . | . . . . . . . . . . . . Core Remaining (%) 71 | 100 80 . . . 83 . . . . 23 . Volleys Fired 441 | 7 49 85 7 . 18 75 42 24 57 77 . Largest 2 | 2 2 2 2 . 2 2 2 2 2 2 . Hottest 136 | 60 100 136 136 . 136 136 122 126 136 136 . Shots Fired 779 | 14 84 170 14 . 33 150 77 46 108 83 . Gun 379 | 14 77 52 . . . 70 72 16 78 . . Cannon 375 | . . 118 14 . 30 80 . 30 26 77 . Launcher 18 | . . . . . 3 . 5 . 4 6 . Special 7 | . 7 . . . . . . . . . . Kinetic 76 | 7 17 52 . . . . . . . . . Thermal 504 | . 7 118 14 . 30 150 72 10 26 77 . Explosive 8 | . . . . . 3 . 5 . . . . Electromagnetic 191 | 7 60 . . . . . . 36 82 6 . Robot Hit Streak 16 | 4 6 13 5 . 14 16 13 14 13 15 . Robot Miss Streak 5 | 1 5 4 1 . 3 4 2 2 4 5 . Penetration Max . | . . . . . . . . . . . . Secondary Targets 8 | . 3 1 . . . 1 3 . . . . Max Gunslinging Chain 1 | . 1 1 . . . 1 1 . . . . Shots Hit Robots 521 | 10 40 98 9 . 20 94 56 37 93 59 5 Core Hits 253 | 3 20 44 5 . 14 45 25 16 47 32 2 Critical Kills 6 | . . 2 2 . . 1 . . . 1 . Critical Parts Destroyed 2 | . . . . . . . . 1 1 . . Critical Strikes 18 | . . 2 2 . . 4 6 2 1 1 . Burn 10 | . . . . . . 3 6 1 . . . Meltdown 6 | . . 2 2 . . 1 . . . 1 . Smash 2 | . . . . . . . . 1 1 . . Melee Attacks 51 | . . . . . . . 1 7 29 . 14 Impact 37 | . . . . . . . 1 7 29 . . Slashing 13 | . . . . . . . . . . . 13 Piercing . | . . . . . . . . . . . . Sneak Attacks 6 | . . . . . . . . 2 2 . 2 Combat Hostiles . | . . . . . . . . . . . . Follow-up Attacks . | . . . . . . . . . . . . Damage Inflicted 12523 | 130 601 1923 246 . 685 1952 1394 1120 2681 1597 194 Guns 4573 | 130 567 449 . . . 927 1044 242 1214 . . Cannons 5240 | . . 1454 223 . 396 1025 . 508 369 1265 . Explosions 1601 | . 28 . . . 280 . 350 64 547 332 . Melee 1048 | . . . . . . . . 303 551 . 194 Ramming 61 | . 6 20 23 . 9 . . 3 . . . Kinetic 613 | 76 88 449 . . . . . . . . . Thermal 7183 | . 28 1454 223 . 396 1952 1044 220 601 1265 . Explosive 630 | . . . . . 280 . 350 . . . . Electromagnetic 2988 | 54 479 . . . . . . 594 1529 332 . Impact 854 | . . . . . . . . 303 551 . . Slashing 194 | . . . . . . . . . . . 194 Piercing . | . . . . . . . . . . . . Highest Corruption 5 | . 5 . . . . . . . 1 1 . Average Corruption 2 | . 3 . . . . . . . 1 1 . Corruption Purged . | . . . . . . . . . . . . Corruption Blocked . | . . . . . . . . . . . . Effects 26 | . 14 . . . . . . . 4 8 . Message Errors 7 | . 4 . . . . . . . 1 2 . Matter Fused 7 | . 2 . . . . . . . 1 4 . Heat Flow Errors 3 | . 3 . . . . . . . . . . Energy Discharges 3 | . 2 . . . . . . . . 1 . Parts Rejected 1 | . 1 . . . . . . . . . . Data Loss (minor) 1 | . . . . . . . . . 1 . . Data Loss (major) 2 | . . . . . . . . . 1 1 . Misfires 1 | . 1 . . . . . . . . . . Weapon Failures 1 | . 1 . . . . . . . . . . Overload Shots . | . . . . . . . . . . . . Overflow Damage 337 | . . 12 . . 23 . . 168 94 10 30 Projectiles 24 | . . 12 . . . . . 10 1 1 . Explosions 32 | . . . . . 23 . . . . 9 . Melee 281 | . . . . . . . . 158 93 . 30 Knockbacks 1 | . . . 1 . . . . . . . . Impact 1 | . . . 1 . . . . . . . . Kinetic . | . . . . . . . . . . . . Secondary . | . . . . . . . . . . . . Self-Inflicted Damage 126 | . . . . . . . . 29 69 28 . Shots 5 | . . . . . . . . 1 2 2 . Rammed 2 | . 2 . . . . . . . . . . Targets Rammed 8 | . 2 1 2 . 2 . . 1 . . . Kicked 6 | . . 1 2 . 2 . . 1 . . . Crushed . | . . . . . . . . . . . . Highest Temperature 491 | . 247 261 78 . 162 93 371 243 491 393 55 Average Temperature 87 | . 65 85 27 . 63 18 86 69 107 134 39 Received Heat Transfer 1713 | . 129 246 . . 54 315 306 126 387 108 42 Effects 13 | . 1 . . . . . . 1 8 3 . Shutdowns 1 | . . . . . . . . . 1 . . Energy Bleed 7 | . 1 . . . . . . 1 3 2 . Short Circuit 1 | . . . . . . . . . . 1 . Damage (major) 4 | . . . . . . . . . 4 . . Siege Activations . | . . . . . . . . . . . . Robots Corrupted 3 | . . . . . . . . 1 2 . . Combat Hostiles 3 | . . . . . . . . 1 2 . . Parts Fried 26 | . 2 . . . . . . 3 17 4 . Impact Corruptions 8 | . . . . . . . . 4 4 . . Robots Melted 6 | . . 2 2 . . 1 . . . 1 . Combat Hostiles 2 | . . 1 . . . . . . . 1 . Parts Melted 30 | . . 8 3 . 1 9 8 . 1 . . Heat Transferred 13842 | . 50 2627 407 . 703 3959 2479 457 866 2294 . Parts Sabotaged . | . . . . . . . . . . . . Parts Stolen . | . . . . . . . . . . . . Parts Stripped . | . . . . . . . . . . . . Power Chain Reactions 8 | . 1 . . . . . . 2 4 1 . Missiles Intercepted . | . . . . . . . . . . . . Alert | -11 -10 -9 -9 -9 -8 -8 -8 -8 -8 -8 -7 ------- Run | Scr Mat Mat Min Exi Min Mat Gar Mat Sto Gar Fac Peak Influence 742 | 15 296 689 315 . 299 577 742 500 559 551 410 Initial 375 | . 9 83 244 . . 38 375 361 104 142 289 Average 316 | 6 153 409 166 . 147 314 606 257 381 430 339 Maximum Alert Level 3 | . 1 2 1 . 1 2 3 2 2 2 2 Low Security (%) 32 | 100 82 9 62 . 69 31 . 44 10 7 . Level 1 31 | . 17 39 37 . 30 28 7 20 33 23 95 Level 2 34 | . . 51 . . . 39 70 35 55 69 4 Level 3 1 | . . . . . . . 21 . . . . Level 4 . | . . . . . . . . . . . . Level 5 . | . . . . . . . . . . . . High Security . | . . . . . . . . . . . . Max Security . | . . . . . . . . . . . . Squads Dispatched 11 | . 1 5 . . . 1 . . 2 . 2 Investigation 5 | . . 2 . . . . . . 2 . 1 Extermination . | . . . . . . . . . . . . Reinforcement 5 | . 1 2 . . . 1 . . . . 1 Assault 1 | . . 1 . . . . . . . . . Garrison . | . . . . . . . . . . . . Intercept . | . . . . . . . . . . . . Searches Triggered . | . . . . . . . . . . . . Construction Impeded . | . . . . . . . . . . . . Haulers Reinforced . | . . . . . . . . . . . . Active Scanning Responses . | . . . . . . . . . . . . Cargo Convoy Interrupts . | . . . . . . . . . . . . Stealth | -11 -10 -9 -9 -9 -8 -8 -8 -8 -8 -8 -7 --------- Run | Scr Mat Mat Min Exi Min Mat Gar Mat Sto Gar Fac Distress Signals 10 | . 1 2 . . . 6 . . 1 . . Communications Jammed . | . . . . . . . . . . . . Distress Signals . | . . . . . . . . . . . . Times Spotted 198 | . 18 37 6 . 10 36 14 15 28 16 18 Peak Tracking Total 8 | . 4 6 3 . 3 6 5 4 3 6 8 Tactical Retreats 11 | . 1 . . . 1 1 1 3 . . 4 Traps | -11 -10 -9 -9 -9 -8 -8 -8 -8 -8 -8 -7 ------- Run | Scr Mat Mat Min Exi Min Mat Gar Mat Sto Gar Fac Traps Triggered 9 | . 3 . . . . . 1 . 3 . 2 Indirectly . | . . . . . . . . . . . . Trap Hack Attempts . | . . . . . . . . . . . . Triggered . | . . . . . . . . . . . . Disarmed . | . . . . . . . . . . . . Reprogrammed . | . . . . . . . . . . . . Reused . | . . . . . . . . . . . . Traps Extracted . | . . . . . . . . . . . . Installed . | . . . . . . . . . . . . Triggered . | . . . . . . . . . . . . Machines | -11 -10 -9 -9 -9 -8 -8 -8 -8 -8 -8 -7 ---------- Run | Scr Mat Mat Min Exi Min Mat Gar Mat Sto Gar Fac Machines Disabled 15 | . . 2 . . 1 2 2 . 7 1 . Max in Single Turn 2 | . . 1 . . 1 1 1 . 2 1 . Garrison Access 1 | . . . . . . . . . . . 1 Garrison Relay 3 | . . . . . . . 2 . . 1 . Machines Sabotaged . | . . . . . . . . . . . . Garrisons Compromised . | . . . . . . . . . . . . Overloaded Fab Kills . | . . . . . . . . . . . . Hacking | -11 -10 -9 -9 -9 -8 -8 -8 -8 -8 -8 -7 --------- Run | Scr Mat Mat Min Exi Min Mat Gar Mat Sto Gar Fac Machines Accessed 32 | . 4 6 1 1 . 3 . 3 8 . 6 Terminals 23 | . 4 4 . . . 2 . 3 7 . 3 Fabricators 1 | . . . . . . . . . . . 1 Repair Stations . | . . . . . . . . . . . . Recycling Units 3 | . . 2 . . . . . . . . 1 Scanalyzers . | . . . . . . . . . . . . Garrison Access 3 | . . . . . . 1 . . 1 . 1 Total Hacks 108 | . 16 18 1 1 . 16 . 9 31 . 16 Successful 59 | . 10 10 1 1 . 9 . 6 14 . 8 Failed 48 | . 6 7 . . . 7 . 3 17 . 8 Catastrophic 9 | . 2 2 . . . . . 2 3 . . Database Lockouts 1 | . . 1 . . . . . . . . . Manual 53 | . 7 7 . . . 8 . 5 20 . 6 Terminals 86 | . 16 12 . . . 12 . 9 29 . 8 Fabricators 3 | . . . . . . . . . . . 3 Repair Stations . | . . . . . . . . . . . . Recycling Units 9 | . . 6 . . . . . . . . 3 Scanalyzers . | . . . . . . . . . . . . Garrison Access 8 | . . . . . . 4 . . 2 . 2 Terminal Hacks 34 | . 7 6 1 1 . 4 . 5 8 . 2 Record 1 | . . . . 1 . . . . . . . Part Schematic 3 | . 2 . . . . . . . . . 1 Robot Schematic 1 | . . 1 . . . . . . . . . Robot Analysis 1 | . 1 . . . . . . . . . . Prototype ID Bank 7 | . 3 1 . . . 1 . 1 1 . . Open Door 1 | . . . 1 . . . . . . . . Branch Access Points 3 | . . 1 . . . 1 . 1 . . . Terminal Index 2 | . . 1 . . . . . . 1 . . Unreport Threat 5 | . . . . . . . . 2 3 . . Locate Traps 1 | . . 1 . . . . . . . . . Hauler Manifests 4 | . . 1 . . . 1 . . 1 . 1 Registered Components 2 | . 1 . . . . . . 1 . . . Zone Layout 3 | . . . . . . 1 . . 2 . . Fabricator Hacks 1 | . . . . . . . . . . . 1 Network Status 1 | . . . . . . . . . . . 1 Repair Station Hacks . | . . . . . . . . . . . . Recycling Unit Hacks 2 | . . 1 . . . . . . . . 1 Retrieve Components 2 | . . 1 . . . . . . . . 1 Scanalyzer . | . . . . . . . . . . . . Garrison Access Hacks 4 | . . . . . . 1 . . 1 . 2 Unlock Access 2 | . . . . . . 1 . . 1 . . Seal Access 1 | . . . . . . . . . . . 1 Coupler Status 1 | . . . . . . . . . . . 1 Unauthorized Hacks 18 | . 3 3 . . . 4 . 1 5 . 2 Terminals 15 | . 3 1 . . . 4 . 1 4 . 2 Track 2 | . . . . . . 1 . . 1 . . Botnet 8 | . 2 . . . . 2 . 1 2 . 1 Detonate 1 | . . . . . . . . . . . 1 Operators 4 | . 1 1 . . . 1 . . 1 . . Fabricators . | . . . . . . . . . . . . Repair Stations . | . . . . . . . . . . . . Recycling Units 2 | . . 2 . . . . . . . . . Tunnel 2 | . . 2 . . . . . . . . . Scanalyzers . | . . . . . . . . . . . . Garrison Access 1 | . . . . . . . . . 1 . . Eject 1 | . . . . . . . . . 1 . . Data Cores Recovered . | . . . . . . . . . . . . Used . | . . . . . . . . . . . . Hacking Detections 27 | . 4 5 . . . 3 . 3 7 . 5 Full Trace Events 3 | . . 1 . . . . . . 1 . 1 Feedback Events . | . . . . . . . . . . . . Feedback Blocked . | . . . . . . . . . . . . Robot Schematics Acquired 1 | . . 1 . . . . . . . . . Robots Built . | . . . . . . . . . . . . Authchips . | . . . . . . . . . . . . Time . | . . . . . . . . . . . . Total Robot Build Rating . | . . . . . . . . . . . . Part Schematics Acquired 3 | . 2 . . . . . . . . . 1 Parts Built . | . . . . . . . . . . . . Authchips . | . . . . . . . . . . . . Time . | . . . . . . . . . . . . Total Part Build Rating . | . . . . . . . . . . . . Parts Repaired . | . . . . . . . . . . . . Time . | . . . . . . . . . . . . Parts Recycled . | . . . . . . . . . . . . Recycled Matter . | . . . . . . . . . . . . Retrieved Matter . | . . . . . . . . . . . . Retrieved Components 7 | . . 7 . . . . . . . . . Parts Scanalyzed . | . . . . . . . . . . . . Part Schematics Acquired . | . . . . . . . . . . . . Parts Damaged . | . . . . . . . . . . . . Bothacking | -11 -10 -9 -9 -9 -8 -8 -8 -8 -8 -8 -7 ------------ Run | Scr Mat Mat Min Exi Min Mat Gar Mat Sto Gar Fac Used RIF Installer 2 | . . . . . . . 1 . . 1 . Threat Obfuscator 1 | . . . . . . . . . . 1 . Robots Hacked 1 | . . . . . . . . . . . 1 Non-combat 1 | . . . . . . . . . . . 1 Combat . | . . . . . . . . . . . . Robot Hacks Applied 1 | . . . . . . . . . . . 1 deconstruct_machine 1 | . . . . . . . . . . . 1 Relay Couplers Released 15 | . . . . . . . 7 . 3 3 2 Ejected 3 | . . . . . . . . . 3 . . Machine Destruction 12 | . . . . . . . 7 . . 3 2 Attached 3 | . . . . . . . 1 . . . 2 Fabnet Peak Effective % . | . . . . . . . . . . . . Robots Rewired . | . . . . . . . . . . . . Allies Hacked . | . . . . . . . . . . . . Hacks Repelled . | . . . . . . . . . . . . Allies | -11 -10 -9 -9 -9 -8 -8 -8 -8 -8 -8 -7 -------- Run | Scr Mat Mat Min Exi Min Mat Gar Mat Sto Gar Fac Total Allies 3 | . . . 3 . . . . . . . . Largest Group 3 | . . . 3 1 . . . . . . . Highest-Rated Group 80 | . . . 80 28 . . . . . . . Highest-Rated Ally 31 | . . . 31 28 . . . . . . . Total Orders . | . . . . . . . . . . . . Ally Attacks 10 | . . . 10 . . . . . . . . Total Damage 146 | . . . 146 . . . . . . . . Kills 4 | . . . 4 . . . . . . . . Allies Corrupted . | . . . . . . . . . . . . Allies Melted 1 | . . . 1 . . . . . . . . Intel | -11 -10 -9 -9 -9 -8 -8 -8 -8 -8 -8 -7 ------- Run | Scr Mat Mat Min Exi Min Mat Gar Mat Sto Gar Fac Robot Analysis Total 1 | . 1 . . . . . . . . . . Derelict Logs Recovered 2 | . . . 2 . . . . . . . . Drone Launches . | . . . . . . . . . . . . Drone Recoveries . | . . . . . . . . . . . . Exploration | -11 -10 -9 -9 -9 -8 -8 -8 -8 -8 -8 -7 ------------- Run | Scr Mat Mat Min Exi Min Mat Gar Mat Sto Gar Fac Turns Passed 8702 | 125 773 1249 1056 339 629 632 595 766 1263 841 434 Spaces Moved 6078 | 59 377 713 728 283 465 292 367 515 759 572 948 Core 6 | 6 . . . . . . . . . . . Treads 493 | 53 377 63 . . . . . . . . . Legs 4126 | . . 650 728 283 465 292 367 515 759 67 . Wheels 505 | . . . . . . . . . . 505 . Hover . | . . . . . . . . . . . . Flight 948 | . . . . . . . . . . . 948 Fastest Speed 26 | 50 160 120 120 120 120 120 120 120 122 90 26 Average Speed 107 | 148 160 123 120 120 120 120 121 121 122 97 31 Slowest Speed 260 | 160 160 190 120 120 120 123 123 122 122 260 105 Overloaded Moves . | . . . . . . . . . . . . Propulsion Burnouts . | . . . . . . . . . . . . Robots Hopped 5 | . . . . . . . . . . . 5 Cave-ins Triggered . | . . . . . . . . . . . . Exploration Rate (%) 56 | 5 71 55 98 69 98 27 44 29 93 66 27 Regions Visited 11 Branch Regions 4 Pre-discovered Areas 4 | . . 2 2 . . . . . . . . Known Exits Taken 4 | . . 1 . . . 1 . 1 1 . . Unknown Exits Taken 5 | 1 1 . 1 1 1 . . . . . . Scrap Searched 2 | . . . 1 . 1 . . . . . . Spaces Dug 11 | . 2 . . . . . . . 5 . 4 Terrain Destroyed 95 | . 10 . . . 29 . 18 7 26 1 4 Melee 9 | . . . . . . . . . 5 . 4 Projectile 7 | . 7 . . . . . . . . . . AOE 79 | . 3 . . . 29 . 18 7 21 1 . Terrain Rammed . | . . . . . . . . . . . . Walls Destroyed . | . . . . . . . . . . . . Machines Disabled . | . . . . . . . . . . . . Actions | -11 -10 -9 -9 -9 -8 -8 -8 -8 -8 -8 -7 --------- Run | Scr Mat Mat Min Exi Min Mat Gar Mat Sto Gar Fac Total 7356 | 79 446 920 898 282 502 423 434 607 935 769 1061 Wait 487 | . 3 56 152 . 6 31 1 19 49 109 61 Move 6057 | 58 376 712 727 282 464 292 365 514 759 570 938 Hop 5 | . . . . . . . . . . . 5 Pick Up 55 | 7 4 19 2 . . 2 2 7 3 1 8 Fast Attach 58 | 7 2 7 1 . . 7 8 9 5 4 8 Attach 23 | . . 5 . . . 2 2 1 . 1 12 Detach 6 | . . 1 . . . . . 1 . . 4 Swap 64 | . 6 7 2 . 8 4 5 5 19 6 2 Drop 98 | . 4 27 5 . 4 10 5 19 14 1 9 Fire 441 | 7 49 85 7 . 18 75 42 24 57 77 . Melee 51 | . . . . . . . 1 7 29 . 14 Ram . | . . . . . . . . . . . . Kick 6 | . . 1 2 . 2 . . 1 . . . Crush 2 | . 2 . . . . . . . . . . Escape Stasis 3 | . . . . . . . 3 . . . . Rewire . | . . . . . . . . . . . . Trap . | . . . . . . . . . . . . Miscellaneous . | . . . . . . . . . . . . Route ------- -11/Scrapyard -10/Materials (discovered 4 exits: *Mat x3 / [*Min]) -9/Materials (discovered 3 exits: *Mat x2 / *Min) -9/Mines (discovered 3 exits: *Mat x2 / *Exi) -9/Exiles -8/Mines (discovered 2 exits: *Mat x2) -8/Materials (discovered 4 exits: *Fac / Sto x2 / Gar) -8/Garrison -8/Materials -8/Storage (discovered 3 exits: *Fac / [Rec] / Gar) -8/Garrison (discovered 3 exits: *Fac x3) -7/Factory (discovered 3 exits: [*Fac x2] / [*Low]) History --------- Turn | Location | Event 23 | -11/Scrapyard | Discovered new exit (range 15) 126 | -11/Scrapyard | Entered Materials 314 | -10/Materials | Build established: Mutant 335 | -10/Materials | Discovered new exit (range 13) 449 | -10/Materials | Discovered new exit (range 15) 523 | -10/Materials | Discovered new exit (range 15) 682 | -10/Materials | Discovered new exit (range 16) 899 | -10/Materials | Entered another Materials area 899 | -9/Materials | Evolved 2 slots: Propulsion x1, Utility x1 1316 | -9/Materials | Identified exit to Mines 1467 | -9/Materials | Central database locked down 1658 | -9/Materials | Discovered new exit (range 14) 1869 | -9/Materials | Build established: Scavenger-Mutant 1996 | -9/Materials | Discovered new exit (range 15) 2099 | -9/Materials | First assault squad dispatched 2148 | -9/Materials | Entered Mines 2263 | -9/Mines | Build established: Mutant 2304 | -9/Mines | A Derelict revealed a hidden shortcut to a safe place 2351 | -9/Mines | Learned location of Storage (-8) 2424 | -9/Mines | Met a Derelict who couldn't figure out how to use a Trap Extractor 2700 | -9/Mines | Deemed a non-threat by the Exiles lab entrance 2700 | -9/Mines | Discovered new exit (range 5) 2841 | -9/Mines | Discovered new exit (range 5) 2843 | -9/Mines | Received a Mining Laser from a helpful Derelict 2883 | -9/Mines | Discovered new exit (range 11) 3204 | -9/Mines | Entered Exiles 3204 | -9/Exiles | Found Exiles lab abandoned 3204 | -9/Exiles | Accompanied by 1 ally 3234 | -9/Exiles | Led the pair of lost Derelicts to a safe place 3527 | -9/Exiles | Discovered new exit (range 14) 3543 | -9/Exiles | Entered Mines 3683 | -8/Mines | Discovered new exit (range 10) 4065 | -8/Mines | Build established: Scavenger-Mutant 4155 | -8/Mines | Discovered new exit (range 13) 4172 | -8/Mines | Entered Materials 4172 | -8/Materials | Evolved 2 slots: Propulsion x1, Utility x1 4262 | -8/Materials | Identified exit to Storage 4674 | -8/Materials | Discovered new exit (range 15) 4804 | -8/Materials | Identified exit to Garrison 4804 | -8/Materials | Entered Garrison 4924 | -8/Garrison | Triggered checkpoint 4957 | -8/Garrison | Discovered new exit (range 8) 4975 | -8/Garrison | Installed Relay Interface Framework 4996 | -8/Garrison | Triggered checkpoint 5031 | -8/Garrison | Garrison Relay disabled 5227 | -8/Garrison | Lost 5 parts (1p1n2u1w) 5273 | -8/Garrison | Garrison Relay disabled 5399 | -8/Garrison | Entered Materials 5449 | -8/Materials | Discovered exit to Storage (range 14) 6165 | -8/Materials | Entered Storage 6250 | -8/Storage | Discovered new exit (range 6) 6463 | -8/Storage | Core integrity fell below 50% 7251 | -8/Storage | Discovered new exit (range 16) 7428 | -8/Storage | Identified exit to Garrison 7428 | -8/Storage | Entered Garrison 7484 | -8/Garrison | Triggered checkpoint 7573 | -8/Garrison | Triggered checkpoint 7579 | -8/Garrison | Triggered checkpoint 7635 | -8/Garrison | Lost 3 parts (3n) 7863 | -8/Garrison | Discovered new exit (range 8) 8025 | -8/Garrison | Discovered new exit (range 13) 8041 | -8/Garrison | Expanded RIF knowledge: Threat Obfuscation 8143 | -8/Garrison | Discovered new exit (range 15) 8218 | -8/Garrison | Triggered checkpoint 8235 | -8/Garrison | Garrison Relay disabled 8269 | -8/Garrison | Entered Factory 8269 | -7/Factory | Evolved 2 slots: Utility x2 8345 | -7/Factory | Discovered new exit (range 16) 8400 | -7/Factory | Core integrity fell below 50% 8424 | -7/Factory | Core integrity fell below 20% 8457 | -7/Factory | Lost 3 parts (2n1u) 8610 | -7/Factory | Discovered new exit (range 15) 8662 | -7/Factory | Discovered new exit (range 3) 8703 | -7/Factory | Destroyed by exploding Fusion Modulator Last Messages --------------- 2x Rnf. Ion Engine >>Trojan(Botnet) Trojan loaded successfully. Testing... Terminal linked with 0 systems. Awaiting botnet instructions. 08610_ EXIT=FOUND 08660_ Acquired Cesium-ion Thruster. 08662_ EXIT=FOUND 08668_ Discarded Terrain Scan Processor. 08668_ Acquired Transmission Jammer. 08677_ Sneak attack on R-06 Scavenger. 08677_ R-06 Scavenger destroyed. 08679_ Acquired 82 matter. 08703_ Triggered Heavy Explosive Trap. 08703_ An explosion rips through the floor. 08703_ Fusion Modulator explodes. 08703_ Chainsword destroyed. 08703_ Transmission Jammer destroyed. 08703_ Mak. Power Source destroyed. Map ----- +----------------------------------------------------+ | # # """ """ ? ???#!!! """ """ #?######## | | """" # # """ """ ?????# """ """ #?# | | """"?# # "?? """ ?????##[ #?# | | """??# # ?? ???????#"###############?# | | ""???+ + ?? ????????###???????????????# | | ????? ??? ??????????????????????????# ] | | ??????????#????#??????????????????????????# | | ???????????????????#######??????????????? # | | ???????????????????#=== ???????????? # | | ??#????????????????#=== ! !#??"""??""" # | | ???????????????????#=== #?? # | | ???????????????????# """ #?"""" """" # | | ???????????????????#""" """ #?"""" """" # | | ???????????????????#"Y """ #??""" """" ######## | | ????????????????????""" ?????" """" #??????? | | ?????????????#???????? ????????? ????????? | | ?????????????# #########/#############+########### | | ?????????????# kr | | ?????????????# | | ?????????????+ | | ?????????????# | | ?????????????# | | ?????????????######;;; ###+#############+#### | | ?????????????????## ????# | | ?????????????????#; """"" ???# | | #????????????????#; @ """"" #??# | | ?????????????????#; """ #??# === | | ?????????????????#; #??# == | | ?????????????????#; #??# == | | ?????????????????## ; !! #??# | | ??????????????????# ; !! #??# | | ??????????????????#! # #??# """ """ | | ??????????????????###################??# """ """ | | ???????????????????????????????????????# """ """ | | ?????????????????????????????????????????? ? | | ??????????????????????????????????????????###?#### | | ?????????????????????????????????????????????????? | | ?????????????????????????????????????????????????? | | ?????????????????????????????????????????????????? | | ?????????????????????????????????????????????????? | | ?????????????????????????????????????????????????? | | a????????????????????????????????????????????????? | | ?????????????????????????????????????????????????? | | ?????????????????????????????????????????????????? | | ?????????????????????????????????????????????????? | | ?????????????????????????????????????????????????? | | ?????????????????????????????????????????????????? | | ?????????????????????????????????????????????????? | | ?????????????????????????????????????????????????? | | ?????????????????????????????????????????????????? | +----------------------------------------------------+ Best States ------------- Heat Dissipation 55 Coolant Potential 50 Energy Generation 18 Energy Capacity 280 Matter Stores 300 Matter Capacity 300 Sight Range 16 Terrain Scan Range 16 Terrain Scan Density 85 Jamming Range 12 Armor Coverage 225 Resistance: TH 10 Core Shielding 20 Evasion (%) 64 Targeting Accuracy 12 Recoil Reduction 2 Particle Charging 15 Offensive Hacking 20 Relay Coupler Types 1 Relay Coupler Value 55 Item Schematics ----------------- Huge Storage Unit | -10/Materials | Hacked Hcp. Storage Unit | -10/Materials | Hacked Adv. Melee Analysis Suite | -7/Factory | Hacked Robot Schematics ------------------ M-13 Machinist | -9/Materials | Hacked Fabricated ------------ Nothing Alien Tech Used ----------------- None Achievements -------------- None Challenges ------------ None Game ------ Seed StructuralCompactArray Manual? 0 Play Time 01:01:57 Cumulative 595.6 hours Start 2022.04.23 @ 13:30:50 End 2022.04.23 @ 15:42:31 Sessions 5 Manual Loads 0 Difficulty Rogue Special Mode None Game No. 374 Rogue 374 Adventurer 0 Explorer 0 Win Type - Total 8 Types 5/0/1/1/1/0/0/0/0 Lore% 86 Gallery% 87 Achievement% 74 Wizard Run 0 Options --------- ASCII 0 Keyboard 0 Movement Mouse Keybinds 1 Fullscreen 2 Font 24/Smallcaps Map View 68x50 Tactical HUD 1 Map Filters NONE Filters NONE Steam 1 RUN: 9b3e3fb3-5a84-42d4-bdb0-a07d872d23f0